Cogmind - Beta 16 @@@ ROGUE MODE // 2025.12.19 @ 21:51:43 Player: COGMIND Result: Destroyed by G-34 Mercenary with Small Laser Performance ------------- Evolutions (1) 500 Regions Visited (2) 400 Robots Destroyed (16) 80 Value Destroyed (302) 302 Prototype IDs (0) 0 Alien Tech Used (0) 0 Bonus (0) 0 TOTAL SCORE: 1282 Bonus ------- None Cogmind --------- Core Integrity 0/400 Matter 255/300 Energy 111/125 System Corruption 0% Temperature Hot (243) Movement Core (250) Ox4 Location -9/Materials Parts ------- > --- POWER (3) -------- Light Ion Engine > --- PROPULSION (2) --- (None) > --- UTILITY (2) ------ Small Storage Unit > --- WEAPON (2) ------- Beam Rifle Heavy Assault Rifle > --- INVENTORY (8) ---- Aluminum Leg Improved Heat Sink Peak State ------------ > --- POWER ------------ Light Ion Engine Light Ion Engine > --- PROPULSION ------- Flight Unit Flight Unit > --- UTILITY ---------- Small Storage Unit > --- WEAPON ----------- Beam Rifle Heavy Assault Rifle > --- INVENTORY -------- Aluminum Leg Improved Heat Sink Small Laser [Rating: 9] Favorites ----------- Power Ion Engine Engine Ion Engine Propulsion Aluminum Leg Leg Aluminum Leg Flight Unit Flight Unit Utility Small Storage Unit Device Sensor Array Storage Small Storage Unit Weapon Light Assault Rifle Energy Gun EM Pulse Gun Ballistic Gun Light Assault Rifle Launcher Grenade Launcher Build | -11 -10 -9 ------- Run | Yrd Mat Mat Slots Evolved 2 | . . 2 Power 2 | . . 2 Propulsion . | . . . Utility . | . . . Weapon . | . . . Parts Attached 17 | 6 3 8 Power 3 | 1 . 2 Engine 3 | 1 . 2 Core . | . . . Reactor . | . . . Propulsion 6 | 2 2 2 Treads . | . . . Leg 2 | 2 . . Wheel . | . . . Hover . | . . . Flight 4 | . 2 2 Utility 2 | 1 1 . Device 1 | . 1 . Storage 1 | 1 . . Processor . | . . . Hackware . | . . . Protection . | . . . Artifact . | . . . Weapon 6 | 2 . 4 Energy Gun 3 | 1 . 2 Energy Cannon . | . . . Ballistic Gun 2 | 1 . 1 Ballistic Cannon . | . . . Launcher 1 | . . 1 Special Weapon . | . . . Impact Weapon . | . . . Slashing Weapon . | . . . Piercing Weapon . | . . . Special Melee Weapon . | . . . Unidentified Prototypes . | . . . Parts Lost 10 | . . 10 Power 2 | . . 2 Propulsion 4 | . . 4 Utility 1 | . . 1 Weapon 3 | . . 3 Highest Loss Streak 7 | . . 7 To Critical Strikes . | . . . Average Backups 2 | 2 2 3 Power 1 | . 1 1 Propulsion . | 1 . 1 Utility . | . . . Weapon . | . . . Tool/Special . | . . . Unused Backups 1 | . . 1 Power . | . . . Propulsion . | . . . Utility 1 | . . 1 Weapon . | . . . Tool/Special . | . . . Average Slot Usage (%) 84 | . 97 62 Engine 13 | . 14 13 Leg 14 | . 22 . Flight 8 | . 5 13 Device 8 | . 11 3 Storage 12 | . 14 11 Energy Gun 12 | . 14 9 Ballistic Gun 12 | . 14 9 Peak Build Rating 9 | 6 7 9 Average Rating 6 | 3 6 6 On Entrance 4 | . 6 7 Avg Prop Armor Cover (%) . | . . . Naked Turns . | . . . Heaviest Build 17 | 13 14 17 Greatest Support 20 | 20 20 8 Greatest Overweight (x) 4 | 4 1 4 Average Overweight (x) . | 2 . 1 Largest Inventory Capacity 8 | 8 8 8 Average Capacity 7 | 7 8 8 Most Carried 6 | 4 5 6 Average Carried 2 | 2 2 3 Final Capacity 8 | 8 8 8 Final Carried 5 | 1 5 2 Class Distribution -------------------- 83% | Mutant 16% | Scavenger-Mutant Dominant Class ---------------- Mutant | -10/Materials Scavenger-Mutant | -9/Materials Resources | -11 -10 -9 ----------- Run | Yrd Mat Mat Matter Collected 382 | 133 165 84 Remotely . | . . . Salvage Created 315 | . 79 236 Parts 28 | . 10 18 Haulers Intercepted . | . . . Recyclers Shooed 1 | . 1 . Parts Field Recycled . | . . . Retrieved Matter . | . . . Parts Self-Destructed . | . . . Prevented . | . . . Parts Restored . | . . . Kills | -11 -10 -9 ------- Run | Yrd Mat Mat Combat Hostiles Destroyed 14 | . 3 11 Guns 9 | . 3 6 AOE 5 | . . 5 Classes Destroyed 4 | . 2 2 Watcher 2 | . 2 . Swarmer 10 | . 3 7 Grunt 3 | . . 3 Sentry 1 | . . 1 Best Kill Streak 4 | . 3 4 Combat Bots Only 4 | . 3 4 Max Kills in Single Turn 3 | . 1 3 Gunslinging . | . . . Exploded 3 | . . 3 Melee . | . . . Uniques/NPCs Destroyed . | . . . Combat | -11 -10 -9 -------- Run | Yrd Mat Mat Hostile Shots Fired 155 | . 30 125 Missed 50 | . 11 39 Hits 105 | . 19 86 Projectile 105 | . 19 86 Critical Strikes 1 | . . 1 Damage Taken 1100 | . 140 960 Core 433 | . 27 406 Absorbed by Shields . | . . . Core Remaining (%) 94 | 100 89 . Volleys Fired 49 | . 8 41 Largest 2 | . 2 2 Hottest 79 | . 60 79 Shots Fired 87 | . 16 71 Gun 85 | . 16 69 Cannon . | . . . Launcher 2 | . . 2 Special . | . . . Kinetic 43 | . 8 35 Thermal 21 | . . 21 Explosive 2 | . . 2 Electromagnetic 21 | . 8 13 Robot Hit Streak 7 | . 3 7 Robot Miss Streak 6 | . 4 6 Penetration Max . | . . . Secondary Targets 1 | . 1 . Max Gunslinging Chain 1 | . 1 . Shots Hit Robots 26 | . 8 18 Core Hits 26 | . 6 20 Critical Kills . | . . . Critical Parts Destroyed . | . . . Critical Strikes . | . . . Melee Attacks . | . . . Impact . | . . . Slashing . | . . . Piercing . | . . . Sneak Attacks . | . . . Combat Hostiles . | . . . Follow-up Attacks . | . . . Damage Inflicted 677 | . 101 576 Guns 356 | . 101 255 Cannons . | . . . Explosions 321 | . . 321 Melee . | . . . Ramming . | . . . Kinetic 134 | . 38 96 Thermal 127 | . . 127 Explosive 280 | . . 280 Electromagnetic 136 | . 63 73 Impact . | . . . Slashing . | . . . Piercing . | . . . Highest Corruption 1 | . 1 . Average Corruption 1 | . 1 . Corruption Purged . | . . . Corruption Blocked . | . . . Overload Shots . | . . . Overflow Damage 7 | . . 7 Projectiles . | . . . Explosions 7 | . . 7 Melee . | . . . Knockbacks . | . . . Impact . | . . . Kinetic . | . . . Secondary . | . . . Self-Inflicted Damage 40 | . . 40 Shots 1 | . . 1 Rammed . | . . . Targets Rammed . | . . . Kicked . | . . . Crushed . | . . . Highest Temperature 237 | . 30 237 Average Temperature 60 | . 15 68 Received Heat Transfer 342 | . . 342 Siege Activations . | . . . Martial Activations . | . . . Shielding Activations . | . . . Robots Disrupted . | . . . Combat Hostiles . | . . . Robots Corrupted . | . . . Combat Hostiles . | . . . Parts Fried . | . . . Impact Corruptions . | . . . Robots Melted . | . . . Combat Hostiles . | . . . Parts Melted 2 | . . 2 Heat Transferred 261 | . . 261 Parts Sabotaged . | . . . Parts Stolen . | . . . Parts Stripped . | . . . Power Chain Reactions 1 | . . 1 Alert | -11 -10 -9 ------- Run | Yrd Mat Mat Maximum Alert Level . | . . . Low Security (%) 100 | 100 100 100 Level 1 . | . . . Level 2 . | . . . Level 3 . | . . . Level 4 . | . . . Level 5 . | . . . High Security . | . . . Max Security . | . . . Peak Influence 178 | . 75 178 Initial 15 | . . 15 Average 42 | . 14 106 Influence Increases 458 | . 130 328 Destroy 0b10 Robot/C 280 | . 60 220 Destroy 0b10 Robot/NC 10 | . 10 . Destroy Leader 54 | . 14 40 Successful Hack 16 | . 16 . Disable Machine 15 | . . 15 Destroy Structure 23 | . . 23 Partial Spotted 15 | . 15 . Lose Combat Pursuer 45 | . 15 30 Influence Decreases 340 | . 93 247 Entered New Map 22 | . . 22 Time Decay 218 | . 93 125 Lost Part 100 | . . 100 Squads Dispatched 3 | . 2 1 Investigation 1 | . 1 . Extermination . | . . . Reinforcement 2 | . 1 1 Assault . | . . . Garrison . | . . . Intercept . | . . . Searches Triggered . | . . . Construction Impeded 1 | . . 1 Haulers Reinforced . | . . . Active Scanning Responses . | . . . Cargo Convoy Interrupts . | . . . Stealth | -11 -10 -9 --------- Run | Yrd Mat Mat Distress Signals 1 | . . 1 Communications Jammed . | . . . Distress Signals . | . . . Times Spotted 25 | . 7 18 Peak Tracking Total 8 | . 3 8 Tactical Retreats 2 | . 1 1 Traps | -11 -10 -9 ------- Run | Yrd Mat Mat Traps Triggered . | . . . Indirectly . | . . . Trap Hack Attempts . | . . . Triggered . | . . . Disarmed . | . . . Reprogrammed . | . . . Reused . | . . . Traps Extracted . | . . . Installed . | . . . Triggered . | . . . Machines | -11 -10 -9 ---------- Run | Yrd Mat Mat Machines Disabled 1 | . . 1 Max in Single Turn 1 | . . 1 Machines Repaired . | . . . Machines Dismantled . | . . . Machines Sabotaged . | . . . Overloaded Fab Kills . | . . . Hacking | -11 -10 -9 --------- Run | Yrd Mat Mat Machines Accessed 4 | . 4 . Terminals 4 | . 4 . Fabricators . | . . . Repair Stations . | . . . Recycling Units . | . . . Scanalyzers . | . . . Garrison Access . | . . . Total Hacks 13 | . 13 . Successful 8 | . 8 . Failed 5 | . 5 . Catastrophic . | . . . Database Lockouts . | . . . Manual 5 | . 5 . Terminals 13 | . 13 . Fabricators . | . . . Repair Stations . | . . . Recycling Units . | . . . Scanalyzers . | . . . Garrison Access . | . . . Terminal Hacks 5 | . 5 . Record 3 | . 3 . Locate Traps 1 | . 1 . Zone Layout 1 | . 1 . Fabricator Hacks . | . . . Repair Station Hacks . | . . . Recycling Unit Hacks . | . . . Scanalyzer . | . . . Garrison Access Hacks . | . . . Unauthorized Hacks 3 | . 3 . Terminals 3 | . 3 . Assimilate 3 | . 3 . Fabricators . | . . . Repair Stations . | . . . Recycling Units . | . . . Scanalyzers . | . . . Garrison Access . | . . . Data Cores Recovered . | . . . Used . | . . . Hacking Detections 3 | . 3 . Full Trace Events 3 | . 3 . Feedback Events 1 | . 1 . Corruption 1 | . 1 . Feedback Blocked . | . . . Robot Schematics Acquired . | . . . Robots Built . | . . . Authchips . | . . . Time . | . . . Total Robot Build Rating . | . . . Part Schematics Acquired . | . . . Parts Built . | . . . Authchips . | . . . Time . | . . . Total Part Build Rating . | . . . Part Studies Acquired . | . . . Parts Repaired . | . . . Time . | . . . Parts Recycled . | . . . Recycled Matter . | . . . Retrieved Matter . | . . . Retrieved Components . | . . . Parts Scanalyzed . | . . . Part Schematics Acquired . | . . . Parts Damaged . | . . . Bothacking | -11 -10 -9 ------------ Run | Yrd Mat Mat Used RIF Installer . | . . . Robots Hacked . | . . . Non-combat . | . . . Combat . | . . . Robot Hacks Applied . | . . . Relay Couplers Released . | . . . Fabnet Peak Effective % . | . . . Robots Rewired . | . . . Allies Hacked . | . . . Hacks Repelled . | . . . Allies | -11 -10 -9 -------- Run | Yrd Mat Mat Total Allies . | . . . Largest Group . | . . . Highest-Rated Group . | . . . Highest-Rated Ally . | . . . Total Orders . | . . . Ally Attacks . | . . . Total Damage . | . . . Kills . | . . . Allies Corrupted . | . . . Allies Melted . | . . . Intel | -11 -10 -9 ------- Run | Yrd Mat Mat Active Infowar (turns) 479 | . 393 86 Sensors 479 | . 393 86 Robot Analysis Total . | . . . Derelict Logs Recovered . | . . . Drone Launches . | . . . Drone Recoveries . | . . . Exploration | -11 -10 -9 ------------- Run | Yrd Mat Mat Turns Passed 832 | 95 472 265 Spaces Moved 358 | 45 227 86 Core 47 | 42 . 5 Treads . | . . . Legs 162 | 3 159 . Wheels . | . . . Hover . | . . . Flight 149 | . 68 81 Fastest Speed 50 | 50 117 100 Average Speed 138 | 183 119 164 Slowest Speed 360 | 250 120 360 Overloaded Moves . | . . . Propulsion Burnouts . | . . . Robots Hopped . | . . . Potential Cave-ins . | . . . Cave-ins Triggered . | . . . Exploration Rate (%) 16 | 5 31 12 Regions Visited 2 Branch Regions . Pre-discovered Areas . | . . . Known Exits Taken . | . . . Unknown Exits Taken 2 | 1 1 . Scrap Searched . | . . . Spaces Dug . | . . . Terrain Destroyed 23 | . . 23 Melee . | . . . Projectile . | . . . AOE 23 | . . 23 Terrain Rammed . | . . . Walls Destroyed . | . . . Machines Disabled . | . . . Actions | -11 -10 -9 --------- Run | Yrd Mat Mat Total 616 | 57 415 144 Wait 169 | . 167 2 Move 356 | 44 226 86 Hop . | . . . Pick Up 20 | 7 8 5 Fast Attach . | . . . Attach 16 | 6 3 7 Detach . | . . . Swap 2 | . . 2 Drop 4 | . 3 1 Fire 49 | . 8 41 Melee . | . . . Ram . | . . . Kick . | . . . Crush . | . . . Escape Stasis . | . . . Rewire . | . . . Trap . | . . . Miscellaneous . | . . . Route ------- -11/Scrapyard -10/Materials -9/Materials History --------- Turn | Location | Event 7 | -11/Scrapyard | Discovered new exit (range 15) 96 | -11/Scrapyard | Entered Materials 97 | -10/Materials | Met a group of wandering Federalists 310 | -10/Materials | Build established: Mutant 444 | -10/Materials | Discovered new exit (range 15) 568 | -10/Materials | Entered another Materials area 568 | -9/Materials | Evolved 2 slots: Power x2 686 | -9/Materials | Core integrity fell below 50% 722 | -9/Materials | Lost 7 parts (1p2n1u3w) 816 | -9/Materials | Core integrity fell below 20% 833 | -9/Materials | Destroyed by G-34 Mercenary with Small Laser Last Messages --------------- 00749_ Flight Unit destroyed. 00749_ U-05 Engineer lays Concrete. 00750_ K-01 Serf collects debris. 00751_ U-05 Engineer lays Concrete. 00751_ K-01 Serf collects debris. 00752_ S-10 Pest destroyed. 00752_ K-01 Serf cleans the Fusion Modulator. 00752_ U-05 Engineer lays Concrete. 00754_ K-01 Serf collects debris. 00755_ K-01 Serf cleans the Fusion Modulator. 00755_ U-05 Engineer lays Concrete. 00758_ K-01 Serf cleans the Fusion Modulator. 00758_ U-05 Engineer builds a Wall. 00759_ K-01 Serf collects debris. 00764_ Flight Unit melted. 00764_ S-10 Pest destroyed. 00766_ K-01 Serf collects debris. 00767_ Acquired 13 matter. 00808_ Flight Unit destroyed. 00814_ Lgt. Ion Engine destroyed. Map ----- +----------------------------------------------------+ | ?????????????????????????????????????????????????? | | ?????????????????????????????????????????????????? | | ?????????????????????????????????????????????????? | | ???????????????????????????????????? ????????????? | | ???????????????????????????????????? ????????????? | | ???????????????????????????????????? ????????????? | | ???????????????????????????????????? ????????????? | | ???????????????????????????????????? ????????????? | | ???????????????????????????????????? #???????????? | | ???????????????????????????????????? #???????????? | | ???????????????????????????????????# ????????? ]? | | ???????????????????????????????????# ????????? | | ???????????????????????????????????# ????????? | | ??????????????????????? ??????????# #????????? | | ?????????????????????? ####?###?# #????????# | | ??????????????????????/# ###### ##???????T ] | | ????????????????????? !%* #??????## ] | | ????????????????????? "% =%[ *% ##?????# ] | | ????????????????????? =%%= #?????# | | ????????????????????????#######+###% #?????# | | ???????????????????????## ##[ #?????# # | | ???????????????????????? """ ## ##?????# # | | ????????????????????????# g """ ## ##?????# # | | ????????????????????????# !g """ # ###/### # | | ????????????????????????# !! #= *[ # | | ????????????????????????#@ """ # !%= # | | ????????????????????????# """ # ! = # | | ????????????????????????# """ # !####### + | | ????????????????????????# = =%*#######?????# # | | ????????????????????????##########???????????# # | | ?????????????????????????????????############# # | | ???????????????????????????????? | | ???????????????????????????????? | | ???????????????????????????????? | | ?????????????????????????????????##############+## | | ?????????????????????????????????????????# ]! | | ?????????????????????????????????????????# ]! " | | ?????????????????????????????????????????# ]! " | | ?????????????????????????????????????????# " | | ?????????????????????????????????????????# ! | | ?????????????????????????????????????????######### | | | | | | | | | | | | | | | | | | | +----------------------------------------------------+ Best States ------------- Heat Dissipation 28 Energy Generation 15 Energy Capacity 250 Matter Stores 300 Matter Capacity 300 Sight Range 16 Robot Scan Range 14 Terrain Scan Density 10 Evasion (%) 55 Item Schematics ----------------- None Robot Schematics ------------------ None Fabricated ------------ Nothing Repaired ---------- Nothing Studied --------- None Alien Tech Used ----------------- None Achievements -------------- True Hacker Challenges ------------ None Game ------ Seed ZhirovGuidancePlating Manual? 0 Play Time 00:10:49 Cumulative 6.9 hours Start 2025.12.19 @ 21:41:12 End 2025.12.19 @ 21:51:43 Sessions 1 Manual Loads 0 Difficulty Rogue Special Mode None Game No. 15 Rogue 15 Adventurer 0 Explorer 0 Win Type - Total 0 Types 0/0/0/0/0/0/0/0/0/0 Lore% 2 Gallery% 10 Achievement% 7 Wizard Run 0 Options --------- Layout 1 ASCII 0 Keyboard 0 Movement Arrows Keybinds 0 Fullscreen 1 Font 24/Proggy Map View 50x35 Zoom Use 0% Tactical HUD 1 Map Filters NONE Filters NONE Steam 1 RUN: e0eaf08b-32d9-4e45-ade8-a3026d728944